bitfinex-derivatives/quotes_SOLF0:USTF0_20250505
["timestamp","ask_amount","ask_price","bid_price","bid_amount"]
[1746457148239,32.3351,144.62,144.59,6.9164]
[1746457148746,25.42,144.62,144.56,25.42]
[1746457149146,29.636,144.65,144.56,25.42]
[1746457149444,6.9146,144.63,144.6,6.9157]
[1746457149945,29.636,144.65,144.56,25.42]
[1746457150145,6.9143,144.64,144.56,25.42]
[1746457150343,29.636,144.65,144.56,25.42]
[1746457150745,6.9147,144.63,144.56,25.42]
[1746457151249,6.9147,144.63,144.6,6.9158]
[1746457155853,7.47265615,144.62,144.58,6.9166]
[1746457156049,7.47265615,144.6,144.56,25.42]
[1746457156352,6.9177,144.57,144.54,7.9186]
[1746457157244,14.38975615,144.58,144.54,7.9186]
[1746457157953,6.9171,144.58,144.54,7.9186]
[1746457160154,6.9171,144.58,144.55,6.9183]
[1746457161557,6.9171,144.58,144.54,7.9186]
[1746457162152,6.9171,144.58,144.55,6.9181]
[1746457162355,6.9166,144.59,144.55,6.9181]
[1746457163252,32.3361,144.6,144.56,6.9175]
[1746457164554,25.42,144.6,144.57,6.9172]
[1746457164857,6.9156,144.61,144.54,1.0]
[1746457165053,6.9156,144.61,144.55,2.0348]
[1746457165655,25.42,144.63,144.58,6.9166]
[1746457166058,25.42,144.63,144.55,2.0348]
[1746457166262,25.42,144.63,144.57,6.9171]
[1746457166761,6.9157,144.61,144.58,6.9168]
[1746457168158,6.916,144.6,144.57,6.9172]
[1746457170864,6.9168,144.59,144.56,32.2978]
[1746457171064,11.68450037,144.62,144.56,32.2978]
[1746457171264,11.68450037,144.62,144.56,6.9178]
[1746457171464,6.9168,144.59,144.57,6.9174]
[1746457174966,6.9168,144.59,144.56,6.9177]
[1746457176072,6.9169,144.58,144.56,6.9177]
[1746457176366,11.68450037,144.62,144.56,6.9177]
[1746457176766,6.9167,144.59,144.56,6.9177]
[1746457179169,6.9167,144.59,144.56,7.9177]
[1746457181569,7.476641,144.6,144.56,1.0]
[1746457181781,7.476641,144.58,144.56,1.0]
[1746457181969,25.42,144.63,144.56,1.0]
[1746457182171,6.9166,144.59,144.56,7.9176]
[1746457182372,7.476641,144.58,144.56,1.0]
[1746457182780,14.393641,144.58,144.56,1.0]
[1746457183875,6.917,144.58,144.56,1.0]
[1746457185778,6.9174,144.57,144.56,1.0]
[1746457190178,6.9183,144.55,144.54,1.0]
[1746457201085,2.0865,144.58,144.54,1.0]
[1746457201481,25.38,144.59,144.54,1.0]
[1746457201682,6.9172,144.58,144.54,1.0]
[1746457202089,25.38,144.59,144.55,6.9181]
[1746457202386,25.38,144.59,144.54,1.0]
[1746457202885,6.92,144.52,144.46,573.14]
[1746457203082,37.0266189,144.55,144.44,2.0054]
[1746457203283,11.6866189,144.52,144.44,2.0054]
[1746457203484,25.34,144.51,144.42,4.2222]
[1746457203683,27.326,144.51,144.42,4.2222]
[1746457203886,29.4468,144.51,144.42,4.2222]
[1746457204087,30.65182787,144.51,144.42,4.2222]
[1746457204288,30.65182787,144.51,144.44,6.9233]
[1746457204588,30.65182787,144.51,144.42,4.2222]
[1746457204783,30.65182787,144.51,144.44,6.9235]
[1746457205184,30.65182787,144.51,144.42,4.2222]
[1746457205394,25.34,144.51,144.42,4.2222]
[1746457205596,27.3092,144.54,144.44,11.6866189]
[1746457205897,27.3092,144.54,144.45,25.34]
[1746457206198,27.3092,144.54,144.45,27.5031]
[1746457207094,34.2284,144.54,144.45,27.5031]
[1746457207395,27.3092,144.54,144.49,6.9209]
[1746457207897,6.9195,144.53,144.49,6.9209]
[1746457208795,27.3092,144.54,144.45,2.1631]
[1746457209000,27.3092,144.54,144.42,4.2222]
[1746457209001,11.6866189,144.5,144.42,4.2222]
[1746457209197,37.0266189,144.5,144.42,4.2222]
[1746457209598,25.34,144.5,144.42,4.2222]
[1746457209898,25.34,144.5,144.43,25.34]
[1746457210199,25.34,144.5,144.42,4.2222]
[1746457210404,25.34,144.5,144.43,25.34]
[1746457210597,6.9213,144.49,144.45,6.9228]
[1746457210796,25.34,144.5,144.43,25.34]
[1746457210996,6.9204,144.51,144.46,6.9226]
[1746457211903,6.9204,144.51,144.47,6.922]
[1746457212803,6.9207,144.5,144.46,6.9224]
[1746457214405,6.9203,144.51,144.47,6.9221]
[1746457216502,6.9209,144.5,144.46,6.9226]
[1746457218012,6.9204,144.51,144.43,25.34]
[1746457218309,25.34,144.53,144.44,11.6866189]
[1746457218610,32.2596,144.53,144.44,11.6866189]
[1746457218910,32.2596,144.53,144.45,2.1208]
[1746457219111,32.2596,144.53,144.49,6.921]
[1746457219910,6.9198,144.52,144.49,6.921]
[1746457220111,6.9198,144.52,144.48,6.9214]
[1746457221105,25.34,144.53,144.47,25.34]
[1746457222212,6.9207,144.51,144.47,32.2619]
[1746457222510,25.34,144.53,144.47,32.2619]
[1746457223912,6.9208,144.5,144.47,32.2619]
[1746457224315,25.34,144.53,144.47,25.34]
[1746457224607,11.6866189,144.52,144.42,4.2222]
[1746457224815,11.6866189,144.49,144.44,6.9235]
[1746457225002,37.0266189,144.49,144.44,6.9235]
[1746457225413,6.9227,144.46,144.44,6.9235]
[1746457225615,37.0266189,144.49,144.41,25.34]
[1746457226111,6.9238,144.44,144.41,25.34]
[1746457226313,6.9238,144.44,144.41,32.2646]
[1746457226715,6.9246,144.42,144.4,2.0355]
[1746457226917,11.6866189,144.46,144.38,4.0137]
[1746457227115,25.3,144.45,144.38,4.0137]
[1746457227319,6.925,144.42,144.38,4.0137]
[1746457227514,6.925,144.42,144.39,6.9257]
[1746457228018,25.3,144.45,144.39,6.9257]
[1746457228418,6.9249,144.42,144.39,6.9257]
[1746457229019,6.9249,144.42,144.38,10.9399]
[1746457229222,6.9249,144.42,144.38,4.0137]
[1746457229723,6.9243,144.43,144.39,6.926]
[1746457229920,25.3,144.45,144.39,6.926]
[1746457230722,6.9249,144.42,144.38,10.94]
[1746457231216,6.9254,144.41,144.38,4.0137]
[1746457231520,25.3,144.45,144.38,4.0137]
[1746457231822,6.9245,144.42,144.39,6.9258]
[1746457232120,25.3,144.45,144.38,4.0137]
[1746457232322,6.9229,144.46,144.38,4.0137]
[1746457232520,25.32,144.48,144.38,4.0137]
[1746457232926,6.9224,144.47,144.43,6.9238]
[1746457233522,32.2419,144.48,144.43,6.9238]
[1746457233725,32.2419,144.48,144.44,6.9235]
[1746457234125,32.2419,144.48,144.45,6.9231]
[1746457234325,32.2419,144.48,144.42,25.32]
[1746457234824,32.2419,144.48,144.44,6.9233]
[1746457235125,25.32,144.48,144.42,25.32]
[1746457236726,6.9224,144.47,144.42,25.32]
[1746457238026,6.9224,144.47,144.44,6.9236]
[1746457238724,32.2419,144.48,144.44,6.9236]
[1746457239929,6.9222,144.47,144.44,6.9236]
[1746457241827,6.9222,144.47,144.44,7.9236]
[1746457243033,32.2419,144.48,144.45,6.9231]
[1746457247336,6.9222,144.47,144.44,7.9234]
[1746457247635,25.32,144.48,144.44,1.0]
[1746457248230,6.9225,144.47,144.44,7.9232]
[1746457248436,25.32,144.48,144.44,1.0]
[1746457248940,27.4599,144.51,144.44,1.0]
[1746457249237,27.4599,144.51,144.48,6.9216]
[1746457249437,24.41757295,144.54,144.46,25.32]
[1746457249938,24.41757295,144.54,144.49,6.921]
[1746457251136,25.32,144.55,144.49,6.921]
[1746457251735,6.9196,144.53,144.49,6.921]
[1746457252038,37.01465673,144.55,144.49,6.921]
[1746457253237,6.92,144.52,144.49,6.921]
[1746457258636,37.01465673,144.55,144.48,6.9213]
[1746457258841,37.01465673,144.55,144.46,25.32]
[1746457259243,6.9195,144.53,144.49,6.9207]
[1746457259438,37.01465673,144.55,144.49,6.9207]
[1746457260643,6.92,144.52,144.5,6.9207]
[1746457261333,25.32,144.55,144.51,6.9201]
[1746457261747,6.9191,144.54,144.51,6.9201]
[1746457262148,25.32,144.55,144.51,6.9201]
[1746457262446,6.9189,144.54,144.51,6.9201]
[1746457262747,6.9189,144.54,144.5,6.9205]
[1746457263647,6.9195,144.53,144.5,6.9205]
[1746457264748,6.919,144.54,144.51,6.92]
[1746457264948,25.32,144.55,144.46,37.01465673]
[1746457265148,25.28,144.58,144.49,11.69465673]
[1746457265349,25.28,144.58,144.5,31.4496]
[1746457265538,36.97465673,144.58,144.5,27.3127]
[1746457266247,6.918,144.56,144.52,6.9195]
[1746457266549,6.918,144.56,144.5,27.3127]
[1746457267445,6.918,144.56,144.52,6.9195]
[1746457267651,6.918,144.56,144.5,27.3127]
[1746457269147,6.9176,144.57,144.5,27.3127]
[1746457269654,36.97465673,144.58,144.52,6.9196]
[1746457269948,36.97465673,144.58,144.5,27.3127]
[1746457270345,6.9193,144.53,144.5,2.0327]
[1746457270541,36.97465673,144.58,144.5,2.0327]
[1746457270741,36.97465673,144.58,144.5,8.9531]
[1746457270945,36.97465673,144.58,144.5,6.9204]
[1746457271146,6.9196,144.53,144.5,6.9204]
[1746457271351,36.97465673,144.58,144.49,32.201]
[1746457271546,36.97465673,144.58,144.49,25.28]
[1746457271745,2.101,144.57,144.49,25.28]
[1746457271951,11.69465673,144.55,144.49,25.28]
[1746457272152,27.2659,144.54,144.46,31.4258]
[1746457272350,11.69465673,144.52,144.44,1.0]
[1746457272854,6.9214,144.49,144.47,6.9221]
[1746457273656,6.9214,144.49,144.46,6.9224]
[1746457273857,6.9218,144.48,144.46,6.9224]
[1746457274059,11.69465673,144.52,144.46,6.9224]
[1746457274355,6.9215,144.49,144.46,6.9224]
[1746457274957,6.9218,144.48,144.45,6.9229]
[1746457275156,6.9218,144.48,144.44,1.0]
[1746457275157,11.69465673,144.52,144.44,1.0]
[1746457275457,27.2659,144.54,144.44,1.0]
[1746457275657,6.9206,144.51,144.47,6.9217]
[1746457276058,6.9208,144.5,144.47,6.9217]
[1746457279460,6.9205,144.51,144.48,6.9214]
[1746457279660,27.2659,144.54,144.44,3.0652]
[1746457280053,6.9214,144.49,144.46,6.9224]
[1746457280656,6.9218,144.48,144.44,1.0]
[1746457280860,25.28,144.5,144.44,1.0]
[1746457281259,6.922,144.48,144.44,7.9232]
[1746457282454,6.9223,144.47,144.44,7.9232]
[1746457283662,6.9218,144.48,144.44,7.9232]
[1746457283959,25.28,144.5,144.45,6.923]
[1746457284261,25.28,144.5,144.44,1.0]
[1746457284562,25.28,144.5,144.44,7.9233]
[1746457284766,6.923,144.46,144.44,1.0]
[1746457284963,25.28,144.5,144.44,1.0]
[1746457285657,6.9224,144.47,144.44,7.9235]
[1746457286172,6.9218,144.48,144.45,6.9229]
[1746457286364,25.28,144.5,144.44,1.0]
[1746457286758,25.28,144.5,144.46,6.9223]
[1746457286759,32.201,144.5,144.46,6.9223]
[1746457287758,25.28,144.5,144.44,1.0]
[1746457288257,6.9224,144.47,144.44,1.0]
[1746457288462,6.9224,144.47,144.44,7.9234]
[1746457289465,6.9218,144.48,144.45,6.923]
[1746457289765,25.28,144.5,144.44,1.0]
[1746457290065,6.9224,144.47,144.44,7.9233]
[1746457290266,25.28,144.5,144.44,1.0]
[1746457290460,2.0428,144.49,144.44,1.0]
[1746457290656,6.9219,144.48,144.44,1.0]
[1746457291166,6.9219,144.48,144.45,6.9228]
[1746457291562,8.9642,144.49,144.44,1.0]
[1746457291768,6.9214,144.49,144.46,6.9225]
[1746457292162,32.201,144.5,144.44,26.24]
[1746457292357,32.201,144.5,144.47,6.9219]
[1746457292564,25.24,144.53,144.44,26.24]
[1746457292769,25.24,144.53,144.45,11.69465673]
[1746457292963,2.0717,144.54,144.45,11.69465673]
[1746457293163,24.41757295,144.55,144.46,4.0074]
[1746457293363,24.41757295,144.55,144.48,11.69465673]
[1746457293572,24.41757295,144.55,144.54,6.9188]
[1746457294167,24.41757295,144.55,144.53,6.9189]
[1746457294360,24.41757295,144.55,144.49,27.2278]
[1746457294867,27.3117,144.59,144.53,6.919]
[1746457295070,27.3117,144.59,144.49,27.2278]
[1746457295372,7.16758,144.56,144.49,27.2278]
[1746457295871,7.16758,144.56,144.52,6.9195]
[1746457296871,0.24948,144.56,144.53,6.9192]
[1746457298675,0.24948,144.56,144.54,6.9186]
[1746457298871,0.24948,144.56,144.53,25.24]
[1746457299176,0.24948,144.56,144.53,32.1591]
[1746457300171,7.16728,144.56,144.53,32.1591]
[1746457300375,0.24948,144.56,144.53,32.1591]
[1746457301176,0.24948,144.56,144.54,6.9187]
[1746457301372,0.24948,144.56,144.53,25.24]
[1746457301778,0.24948,144.56,144.54,6.9188]
[1746457302477,0.24948,144.56,144.55,6.9183]
[1746457302679,25.24,144.62,144.53,27.3623]
[1746457303179,25.24,144.62,144.59,6.916]
[1746457303379,2.0638,144.64,144.54,11.69465673]
[1746457303380,2.0638,144.64,144.57,25.24]
[1746457303675,6.915,144.62,144.59,6.9164]
[1746457303979,2.0638,144.64,144.59,6.9164]
[1746457304185,2.0638,144.64,144.57,25.24]
[1746457304779,6.9158,144.61,144.57,32.157]
[1746457305079,6.9158,144.61,144.57,25.24]
[1746457305277,2.0638,144.64,144.57,25.24]
[1746457305480,6.9162,144.6,144.57,32.1571]
[1746457305780,2.0638,144.64,144.57,25.24]
[1746457305981,6.9157,144.61,144.58,6.9166]
[1746457306576,25.24,144.65,144.57,25.24]
[1746457306978,6.9149,144.63,144.59,6.9162]
[1746457307178,6.9149,144.63,144.57,25.24]
[1746457307581,6.9149,144.63,144.59,6.9162]
[1746457307778,2.1034,144.67,144.57,36.93465673]
[1746457307982,2.1034,144.67,144.58,2.1387]
[1746457308480,2.1034,144.67,144.59,1.9462]
[1746457308681,2.1034,144.67,144.6,6.9157]
[1746457308870,6.9143,144.64,144.6,6.9157]
[1746457309278,6.9143,144.64,144.61,6.9154]
[1746457309487,2.1034,144.67,144.59,1.9462]
[1746457309784,2.1034,144.67,144.62,6.9146]
[1746457310082,6.9137,144.65,144.59,1.9462]
[1746457310287,2.1034,144.67,144.59,1.9462]
[1746457310679,6.9127,144.67,144.59,1.9462]
[1746457310876,6.9127,144.67,144.63,6.9143]
[1746457311786,6.9131,144.66,144.63,6.9143]
[1746457312080,25.24,144.68,144.64,6.9139]
[1746457312483,6.9128,144.67,144.64,6.9139]
[1746457314487,6.9131,144.66,144.63,6.9143]
[1746457315988,6.9128,144.67,144.64,6.914]
[1746457316884,38.97185673,144.71,144.61,25.22]
[1746457317483,6.912,144.69,144.65,6.9131]
[1746457317993,27.2772,144.71,144.61,25.22]
[1746457318187,25.22,144.71,144.61,25.22]
[1746457318487,25.22,144.71,144.66,6.913]
[1746457318787,6.9114,144.7,144.66,6.913]
[1746457318990,25.22,144.71,144.66,6.913]
[1746457319686,6.9118,144.69,144.66,6.913]
[1746457319883,6.9118,144.69,144.65,32.1133]
[1746457320891,6.9118,144.69,144.66,6.913]
[1746457321288,6.9121,144.68,144.65,25.2]
[1746457321490,6.9121,144.68,144.65,32.1133]
[1746457321993,6.9119,144.69,144.66,6.913]
[1746457322285,577.3445,144.74,144.65,25.2]
[1746457322490,577.3445,144.74,144.66,2.0206]
[1746457322892,6.9111,144.71,144.67,6.9123]
[1746457323095,577.3445,144.74,144.67,6.9123]
[1746457324089,6.9112,144.7,144.67,6.9123]
[1746457324592,577.3445,144.74,144.68,6.9121]
[1746457324787,577.3445,144.74,144.66,2.0206]
[1746457325193,6.9107,144.71,144.67,6.9122]
[1746457325495,577.3445,144.74,144.65,25.2]
[1746457325695,6.9124,144.68,144.65,32.1133]
[1746457326292,6.9117,144.69,144.65,32.1133]
[1746457326894,6.9119,144.69,144.66,6.9128]
[1746457327899,11.69465673,144.72,144.63,25.18]
[1746457328100,2.1113,144.71,144.63,25.18]
[1746457328394,25.18,144.7,144.63,25.18]
[1746457328592,6.9124,144.68,144.63,25.18]
[1746457328999,6.9118,144.69,144.63,25.18]
[1746457329495,6.9118,144.69,144.66,6.9126]
[1746457329798,6.9118,144.69,144.63,25.18]
[1746457330304,25.18,144.7,144.63,25.18]
[1746457330597,6.9123,144.68,144.63,25.18]
[1746457330799,25.18,144.7,144.63,25.18]
[1746457331099,2.097,144.69,144.63,25.18]
[1746457331395,2.097,144.69,144.61,2.1322]
[1746457331600,4.0641,144.69,144.61,2.1322]
[1746457331801,6.9134,144.66,144.64,6.9139]
[1746457332101,4.0641,144.69,144.64,6.9139]
[1746457332596,11.69465673,144.67,144.55,168.00756969]
[1746457332802,6.9145,144.63,144.58,572.88]
[1746457333003,25.18,144.66,144.58,25.18]
[1746457333203,25.18,144.66,144.59,6.9161]
[1746457333404,6.9152,144.62,144.59,6.9161]
[1746457333602,25.18,144.66,144.59,6.9161]
[1746457333806,27.2989,144.66,144.58,32.0965]
[1746457334007,27.2989,144.66,144.58,25.18]
[1746457334405,6.9162,144.6,144.57,6.9173]
[1746457334802,11.69465673,144.64,144.56,9.0485]
[1746457335109,29.1371,144.63,144.56,6.9177]
[1746457335504,29.1371,144.63,144.55,32.0981]
[1746457335804,6.9171,144.58,144.55,32.0981]
[1746457336203,6.9171,144.58,144.56,6.9178]
[1746457336804,29.1371,144.63,144.55,25.18]
[1746457337006,11.69465673,144.61,144.52,1.9929]
[1746457337210,11.69465673,144.61,144.55,6.9182]
[1746457337504,6.9174,144.57,144.55,6.9182]
[1746457337808,6.9166,144.59,144.52,1.9929]
[1746457338108,29.1571,144.63,144.54,11.69465673]
[1746457338306,27.1662,144.63,144.55,25.2]
[1746457338508,6.9143,144.64,144.6,6.9155]
[1746457338707,25.2,144.66,144.57,11.69465673]
[1746457338896,25.2,144.66,144.62,6.9147]
[1746457339102,24.41757295,144.63,144.59,25.2]
[1746457340211,24.41757295,144.63,144.6,6.9157]
[1746457340713,31.33207295,144.63,144.6,6.9157]
[1746457341013,6.9145,144.63,144.6,6.9157]
[1746457341209,6.9142,144.64,144.6,6.9157]
[1746457341405,25.2,144.66,144.6,6.9157]
[1746457341611,25.2,144.66,144.59,32.1162]
[1746457341812,25.2,144.66,144.59,25.2]
[1746457342313,6.9144,144.64,144.6,6.9156]
[1746457342812,6.9144,144.64,144.61,6.9154]
[1746457343014,6.9137,144.65,144.61,6.9154]
[1746457343913,25.2,144.66,144.61,6.9154]
[1746457343914,6.914,144.64,144.61,6.9154]
[1746457344716,6.9137,144.65,144.61,6.9154]
[1746457345813,6.9141,144.64,144.6,6.9157]
[1746457346212,6.9141,144.64,144.59,25.2]
[1746457346815,6.9147,144.63,144.6,6.9157]
[1746457347311,6.9151,144.62,144.59,32.1163]
[1746457347511,25.2,144.66,144.59,25.2]
[1746457347708,25.2,144.66,144.56,25.2]
[1746457348016,25.2,144.66,144.59,6.9163]
[1746457348917,25.2,144.66,144.56,25.2]
[1746457349610,6.9138,144.65,144.62,6.9146]
[1746457350012,6.9138,144.65,144.56,25.2]
[1746457350222,25.2,144.66,144.64,6.9136]
[1746457350411,6.9127,144.67,144.64,6.9136]
[1746457351214,6.9131,144.66,144.64,6.9136]
[1746457351917,6.9128,144.67,144.64,6.9136]
[1746457353016,6.9131,144.66,144.64,6.9136]
[1746457353319,2.0261,144.68,144.64,6.9136]
[1746457353518,6.9128,144.67,144.64,6.9136]
[1746457354018,6.9131,144.66,144.64,6.9136]
[1746457355718,6.9136,144.65,144.61,25.16]
[1746457355918,2.0261,144.68,144.61,25.16]
[1746457356322,6.9139,144.65,144.62,6.9146]
[1746457356924,6.9139,144.65,144.63,6.9144]
[1746457357114,6.9132,144.66,144.61,25.16]
[1746457357516,6.9132,144.66,144.63,6.9142]
[1746457358925,6.9128,144.67,144.64,6.914]
[1746457359127,6.9128,144.67,144.61,25.16]
[1746457359527,6.9128,144.67,144.63,6.9141]
[1746457360029,6.9131,144.66,144.63,6.9141]
[1746457361023,25.16,144.69,144.61,25.16]
[1746457361615,6.9123,144.68,144.65,6.9134]
[1746457362322,25.16,144.69,144.61,25.16]
[1746457362525,32.0719,144.69,144.66,6.9129]
[1746457362824,25.16,144.69,144.61,25.16]
[1746457363029,572.8,144.72,144.61,25.16]
[1746457363328,25.16,144.72,144.63,11.66811793]
[1746457363627,25.16,144.72,144.64,2.0818]
[1746457363928,6.9109,144.71,144.68,6.912]
[1746457364321,6.9109,144.71,144.67,6.9124]
[1746457364620,6.9112,144.7,144.67,6.9124]
[1746457366433,25.16,144.72,144.65,25.16]
[1746457367226,6.9122,144.68,144.65,32.0733]
[1746457368426,6.9129,144.67,144.65,25.16]
[1746457369838,6.9124,144.68,144.65,32.0735]
[1746457370531,6.9118,144.69,144.66,6.9131]
[1746457370833,25.16,144.72,144.65,25.16]
[1746457371137,6.9109,144.71,144.68,6.9119]
[1746457371525,25.16,144.72,144.65,27.2929]
[1746457371726,11.66347911,144.7,144.64,3.0818]
[1746457371930,11.66347911,144.7,144.64,1.0]
[1746457372131,6.9133,144.66,144.64,1.0]
[1746457372330,11.66347911,144.7,144.64,1.0]
[1746457372632,25.16,144.68,144.64,1.0]
[1746457372827,6.9135,144.65,144.64,1.0]
[1746457377528,6.9153,144.62,144.59,6.9162]
[1746457378137,25.16,144.64,144.56,27.1664]
[1746457378333,25.16,144.64,144.54,2.0435]
[1746457378638,2.0669,144.63,144.54,27.2035]
[1746457378837,4.121,144.63,144.54,27.2035]
[1746457379039,1.9602,144.62,144.54,27.2035]
[1746457379238,6.9166,144.59,144.56,6.9177]
[1746457379941,6.9166,144.59,144.55,6.9181]
[1746457380241,6.9166,144.59,144.54,27.2035]
[1746457380438,6.917,144.58,144.55,6.9181]
[1746457380644,25.14,144.6,144.54,27.2035]
[1746457381043,6.9174,144.57,144.54,34.1221]
[1746457381437,25.14,144.6,144.54,27.2035]
[1746457381641,6.9182,144.56,144.52,1.9906]
[1746457382240,6.9182,144.56,144.53,6.919]
[1746457382641,6.9184,144.55,144.52,1.9906]
[1746457382840,25.14,144.6,144.52,1.9906]
[1746457383037,6.918,144.56,144.52,1.9906]
[1746457383340,25.14,144.6,144.52,1.9906]
[1746457383842,25.14,144.6,144.53,6.9193]
[1746457384040,25.14,144.6,144.51,572.66]
[1746457384235,6.9189,144.54,144.51,25.14]
[1746457384644,25.14,144.6,144.52,6.9197]
[1746457385641,6.9184,144.55,144.52,6.9197]
[1746457389939,6.9181,144.56,144.52,6.9197]
[1746457390143,6.9181,144.56,144.53,6.9192]
[1746457390342,6.9181,144.56,144.51,25.14]
[1746457390845,6.9181,144.56,144.52,6.9194]
[1746457391144,25.14,144.6,144.51,25.14]
[1746457391446,6.9185,144.55,144.52,6.9197]
[1746457393244,6.9193,144.53,144.5,1.0]
[1746457393747,6.9193,144.53,144.5,7.9205]
[1746457394945,6.9193,144.53,144.51,6.9202]
[1746457397247,6.919,144.54,144.51,6.9202]
[1746457397447,25.14,144.56,144.5,1.0]
[1746457397946,32.0582,144.56,144.5,1.0]
[1746457398137,25.14,144.56,144.52,6.9195]
[1746457398838,25.14,144.56,144.53,6.9192]
[1746457399247,32.0581,144.56,144.53,6.9192]
[1746457401945,6.9185,144.55,144.52,6.9196]
[1746457402144,25.14,144.56,144.5,1.0]
[1746457402747,25.16,144.59,144.51,1.9786]
[1746457403050,25.16,144.59,144.52,25.16]
[1746457403751,6.917,144.58,144.55,6.918]
[1746457403949,25.16,144.59,144.52,25.16]
[1746457404256,25.16,144.59,144.53,6.9191]
[1746457404847,25.16,144.59,144.52,25.16]
[1746457404848,6.9183,144.56,144.52,32.0795]
[1746457405048,25.16,144.59,144.52,25.16]
[1746457405547,6.9181,144.56,144.53,6.9193]
[1746457405953,25.16,144.59,144.52,25.16]
[1746457406550,6.9183,144.55,144.53,6.9193]
[1746457407051,6.9183,144.55,144.52,32.0795]
[1746457408552,6.9183,144.55,144.52,31.9795]
[1746457409156,6.9193,144.53,144.52,25.06]
[1746457409357,6.9193,144.53,144.5,7.9207]
[1746457409956,6.9191,144.54,144.51,6.9202]
[1746457410756,2.0239,144.58,144.5,1.0]
[1746457410956,2.0239,144.58,144.51,2.0751]
[1746457411257,6.9181,144.56,144.51,2.0751]
[1746457411757,6.9181,144.56,144.53,6.919]
[1746457412258,6.9176,144.57,144.51,2.0751]
[1746457412562,25.16,144.59,144.51,2.0751]
[1746457413561,6.9182,144.56,144.51,2.0751]
[1746457414056,6.9182,144.56,144.53,6.9189]
[1746457414561,6.9176,144.57,144.54,6.9187]
[1746457414763,25.16,144.59,144.51,2.0751]
[1746457415763,6.9167,144.59,144.51,2.0751]
[1746457416563,6.9167,144.59,144.56,6.9174]
[1746457416764,6.9162,144.6,144.54,25.12]
[1746457417967,6.9162,144.6,144.57,6.9173]
[1746457418759,6.9164,144.59,144.57,6.9173]
[1746457419067,6.9164,144.59,144.56,6.9176]
[1746457419254,38.77274122,144.62,144.54,25.12]
[1746457419452,6.9161,144.6,144.57,6.9171]
[1746457419965,6.9156,144.61,144.58,6.9168]
[1746457422563,6.9156,144.61,144.57,6.9172]
[1746457423366,6.9162,144.6,144.57,6.9172]
[1746457424662,6.9162,144.6,144.54,27.1297]
[1746457424861,6.9156,144.61,144.58,6.9168]
[1746457425057,2.1406,144.64,144.54,29.205]
[1746457425256,6.9155,144.61,144.54,29.205]
[1746457425461,6.9155,144.61,144.58,6.9166]
[1746457426969,6.9152,144.62,144.59,6.9163]
[1746457427769,6.9148,144.63,144.6,6.9159]
[1746457428359,6.915,144.62,144.59,6.9162]
[1746457428564,25.12,144.65,144.58,25.12]
[1746457429069,6.9148,144.63,144.59,6.916]
[1746457429970,6.9148,144.63,144.6,6.9159]
[1746457430571,6.915,144.62,144.59,6.9162]
[1746457431372,6.9148,144.63,144.6,6.9159]